fUST/lending_fUST_20240110
["ID","MTS","AMOUNT","RATE_DAILY","PERIOD"]
[311073273,1704894644602,-513.25278218,0.00027671,2]
[311073274,1704894644612,-282.4939913,0.00027671,2]
[311073275,1704894644621,-504.21942309,0.00027671,2]
[311073276,1704894644631,-500.0,0.00027671,2]
[311073277,1704894644640,-500.0,0.00027671,2]
[311073278,1704894644649,-614.65,0.00027671,2]
[311073279,1704894644659,-500.0,0.00027671,2]
[311073280,1704894644668,-500.0,0.00027671,2]
[311073281,1704894644677,-500.0,0.00027671,2]
[311073282,1704894644686,-500.0,0.00027671,2]
[311073283,1704894644695,-500.0,0.00027671,2]
[311073284,1704894644704,-500.0,0.00027671,2]
[311073285,1704894644714,-688.88,0.00027671,2]
[311073286,1704894644723,-500.0,0.00027671,2]
[311073287,1704894644732,-500.0,0.00027671,2]
[311073288,1704894644742,-502.5845982,0.00027671,2]
[311073289,1704894644751,-500.0,0.00027671,2]
[311073290,1704894644762,-1201.75,0.00027671,2]
[311073291,1704894644771,-500.0,0.00027671,2]
[311073292,1704894644780,-631.82750431,0.00027671,2]
[311073293,1704894644789,-8881.87,0.00027671,2]
[311073294,1704894644799,-500.0,0.00027671,2]
[311073295,1704894644808,-528.39,0.00027671,2]
[311073296,1704894644817,-500.0,0.00027671,2]
[311073297,1704894644826,-500.0,0.00027671,2]
[311073298,1704894644835,-502.40935148,0.00027671,2]
[311073299,1704894644845,-500.0,0.00027671,2]
[311073300,1704894644855,-500.0,0.00027671,2]
[311073301,1704894644867,-500.0,0.00027671,2]
[311073302,1704894644876,-500.0,0.00027671,2]
[311073303,1704894644885,-202.74783621,0.00027671,2]
[311073304,1704894644895,-500.0,0.00027671,2]
[311073305,1704894644904,-500.0,0.00027671,2]
[311073306,1704894644913,-500.0,0.00027671,2]
[311073307,1704894644922,-500.0,0.00027671,2]
[311073308,1704894644932,-501.60366891,0.00027671,2]
[311073309,1704894644940,-500.0,0.00027671,2]
[311073310,1704894644950,-500.0,0.00027671,2]
[311073311,1704894644960,-501.94728319,0.00027671,2]
[311073312,1704894644969,-500.0,0.00027671,2]
[311073313,1704894644978,-518.84293731,0.00027671,2]
[311073314,1704894644988,-500.0,0.00027671,2]
[311073315,1704894644997,-500.0,0.00027671,2]
[311073316,1704894645007,-500.0,0.00027671,2]
[311073317,1704894645016,-500.0,0.00027671,2]
[311073318,1704894645026,-500.0,0.00027671,2]
[311073319,1704894645035,-177.8276672,0.00027671,2]
[311073320,1704894645044,-500.0,0.00027671,2]
[311073321,1704894645054,-344.89739807,0.00027671,2]
[311073322,1704894645063,-500.0,0.00027671,2]
[311073323,1704894645072,-500.0,0.00027671,2]
[311073324,1704894645082,-500.0,0.00027671,2]
[311073325,1704894645092,-6769.86,0.00027671,2]
[311073326,1704894645101,-500.0,0.00027671,2]
[311073327,1704894645111,-500.0,0.00027671,2]
[311073328,1704894645120,-1310.44,0.00027671,2]
[311073329,1704894645129,-500.0,0.00027671,2]
[311073330,1704894645139,-500.0,0.00027671,2]
[311073331,1704894645148,-500.0,0.00027671,2]
[311073332,1704894645158,-154.29729751,0.00027671,2]
[311073333,1704894645167,-500.0,0.00027671,2]
[311073334,1704894645177,-503.86569273,0.00027671,2]
[311073335,1704894645186,-500.0,0.00027671,2]
[311073336,1704894645195,-500.0,0.00027671,2]
[311073337,1704894645205,-571.23633064,0.00027671,2]
[311073338,1704894645214,-500.0,0.00027671,2]
[311073339,1704894645223,-500.0,0.00027671,2]
[311073340,1704894645232,-500.0,0.00027671,2]
[311073341,1704894645241,-500.0,0.00027671,2]
[311073342,1704894645251,-500.0,0.00027671,2]
[311073343,1704894645261,-500.0,0.00027671,2]
[311073344,1704894645270,-500.0,0.00027671,2]
[311073345,1704894645280,-500.0,0.00027671,2]
[311073346,1704894645289,-500.0,0.00027671,2]
[311073347,1704894645299,-501.69216036,0.00027671,2]
[311073348,1704894645307,-500.0,0.00027671,2]
[311073349,1704894645316,-500.0,0.00027671,2]
[311073350,1704894645326,-500.0,0.00027671,2]
[311073351,1704894645334,-500.0,0.00027671,2]
[311073352,1704894645343,-500.0,0.00027671,2]
[311073353,1704894645353,-500.0,0.00027671,2]
[311073354,1704894645363,-500.0,0.00027671,2]
[311073355,1704894645373,-500.0,0.00027671,2]
[311073356,1704894645383,-500.0,0.00027671,2]
[311073357,1704894645392,-1258.98,0.00027671,2]
[311073358,1704894645401,-500.0,0.00027671,2]
[311073359,1704894645410,-6610.91,0.00027671,2]
[311073360,1704894645419,-510.54888702,0.00027671,2]
[311073361,1704894645428,-500.0,0.00027671,2]
[311073362,1704894645437,-500.0,0.00027671,2]
[311073363,1704894645447,-500.0,0.00027671,2]
[311073364,1704894645457,-1479.71,0.00027671,2]
[311073365,1704894645467,-500.0,0.00027671,2]
[311073366,1704894645477,-896.24,0.00027671,2]
[311073367,1704894645488,-500.0,0.00027671,2]
[311073368,1704894645498,-200.0,0.00027671,2]
[311073369,1704894645507,-2000.0,0.0002768,2]
[311073370,1704894645517,-2000.0,0.0002769,2]
[311073371,1704894645526,-687.59711705,0.000277,2]
[311073372,1704894645536,-2000.0,0.000277,2]
[311073373,1704894645545,-2000.0,0.0002771,2]
[311073374,1704894645556,-2000.0,0.0002772,2]
[311073375,1704894645565,-2000.0,0.0002773,2]
[311073376,1704894645574,-2000.0,0.0002774,2]
[311073377,1704894645584,-2000.0,0.0002775,2]
[311073378,1704894645593,-372.67940215,0.00027758,2]
[311073379,1704894645602,-299.9187449,0.00027759,2]
[311073380,1704894645612,-20908.29230276,0.00027759,2]
[311073381,1704894645621,-2000.0,0.0002776,2]
[311073382,1704894645630,-2000.0,0.0002777,2]
[311073383,1704894645640,-212.72902683,0.00027777,2]
[311073384,1704894645650,-2000.0,0.0002778,2]
[311073385,1704894645660,-2079.751713,0.0002779,2]
[311073386,1704894645670,-975.25077315,0.00027886,2]
[311073388,1704894645679,-500.0,0.00027944,2]
[311073389,1704894645689,-500.0,0.00027944,2]
[311073390,1704894645698,-500.0,0.00027944,2]
[311073391,1704894645707,-500.0,0.00027944,2]
[311073392,1704894645716,-500.0,0.00027945,2]
[311073393,1704894645725,-516.9606474,0.00027945,2]
[311073394,1704894645734,-500.0,0.00027945,2]
[311073395,1704894645743,-500.0,0.00027945,2]
[311073396,1704894645753,-501.78053641,0.00027945,2]
[311073397,1704894645763,-493.76665639,0.00027945,2]
[311073398,1704894645773,-502.65996338,0.00027945,2]
[311073399,1704894645783,-500.0,0.00027945,2]
[311073401,1704894645792,-500.0,0.00027945,2]
[311073403,1704894645801,-302.90524066,0.00027945,2]
[311073404,1704894645810,-545.35604248,0.00027945,2]
[311073405,1704894645819,-500.0,0.00027945,2]
[311073406,1704894645828,-500.0,0.00027945,2]
[311073408,1704894645837,-500.0,0.00027945,2]
[311073409,1704894645847,-500.0,0.00027945,2]
[311073410,1704894645858,-500.0,0.00027945,2]
[311073411,1704894645866,-500.0,0.00027945,2]
[311073412,1704894645876,-500.0,0.00027945,2]
[311073413,1704894645885,-539.11840372,0.00027945,2]
[311073414,1704894645894,-500.0,0.00027945,2]
[311073415,1704894645903,-495.80146423,0.00027945,2]
[311073416,1704894645912,-500.0,0.00027945,2]
[311073417,1704894645921,-500.0,0.00027945,2]
[311073418,1704894645930,-500.0,0.00027945,2]
[311073419,1704894645939,-500.0,0.00027945,2]
[311073420,1704894645949,-500.0,0.00027945,2]
[311073421,1704894645958,-581.94597339,0.00027945,2]
[311073423,1704894645967,-500.0,0.00027945,2]
[311073425,1704894645976,-500.0,0.00027945,2]
[311073427,1704894645986,-300.30861175,0.00027945,2]
[311073429,1704894645995,-500.0,0.00027945,2]
[311073431,1704894646004,-510.60463476,0.00027945,2]
[311073432,1704894646015,-500.0,0.00027945,2]
[311073434,1704894646024,-500.0,0.00027945,2]
[311073435,1704894646033,-500.0,0.00027945,2]
[311073436,1704894646043,-500.0,0.00027945,2]
[311073437,1704894646052,-500.0,0.00027945,2]
[311073439,1704894646062,-500.0,0.00027945,2]
[311073441,1704894646071,-500.0,0.00027945,2]
[311073442,1704894646081,-500.0,0.00027945,2]
[311073443,1704894646091,-500.0,0.00027945,2]
[311073444,1704894646099,-476.30218637,0.00027945,2]
[311073445,1704894646109,-500.0,0.00027945,2]
[311073446,1704894646118,-500.0,0.00027945,2]
[311073447,1704894646127,-500.0,0.00027945,2]
[311073448,1704894646136,-500.0,0.00027945,2]
[311073449,1704894646145,-517.23126257,0.00027945,2]
[311073450,1704894646154,-500.0,0.00027945,2]
[311073451,1704894646164,-500.0,0.00027945,2]
[311073452,1704894646173,-500.0,0.00027945,2]
[311073453,1704894646182,-1521.94,0.00027945,2]
[311073454,1704894646191,-226.49621579,0.00027945,2]
[311073455,1704894646201,-496.21810783,0.00027945,2]
[311073456,1704894646211,-500.0,0.00027945,2]
[311073457,1704894646220,-500.0,0.00027945,2]
[311073458,1704894646229,-500.0,0.00027945,2]
[311073459,1704894646238,-500.0,0.00027945,2]
[311073460,1704894646248,-500.0,0.00027945,2]
[311073461,1704894646256,-500.0,0.00027945,2]
[311073462,1704894646266,-614.65,0.00027945,2]
[311073463,1704894646275,-500.0,0.00027945,2]
[311073464,1704894646285,-500.0,0.00027945,2]
[311073465,1704894646294,-500.0,0.00027945,2]
[311073466,1704894646303,-500.0,0.00027945,2]
[311073467,1704894646312,-688.88,0.00027945,2]
[311073468,1704894646321,-500.0,0.00027945,2]
[311073469,1704894646330,-500.0,0.00027945,2]
[311073470,1704894646340,-1201.75,0.00027945,2]
[311073471,1704894646349,-500.0,0.00027945,2]
[311073472,1704894646358,-8881.87,0.00027945,2]
[311073473,1704894646367,-500.0,0.00027945,2]
[311073474,1704894646377,-528.39,0.00027945,2]
[311073475,1704894646387,-500.0,0.00027945,2]
[311073476,1704894646398,-500.0,0.00027945,2]
[311073477,1704894646407,-500.0,0.00027945,2]
[311073478,1704894646417,-505.78714595,0.00027945,2]
[311073479,1704894646427,-500.0,0.00027945,2]
[311073480,1704894646438,-500.0,0.00027945,2]
[311073481,1704894646447,-500.0,0.00027945,2]
[311073482,1704894646456,-500.0,0.00027945,2]
[311073483,1704894646466,-224.89418296,0.00027945,2]
[311073484,1704894646475,-500.0,0.00027945,2]
[311073485,1704894646485,-500.0,0.00027945,2]
[311073486,1704894646495,-500.0,0.00027945,2]
[311073487,1704894646505,-500.0,0.00027945,2]
[311073488,1704894646516,-500.0,0.00027945,2]
[311073489,1704894646526,-500.0,0.00027945,2]
[311073490,1704894646536,-500.0,0.00027945,2]
[311073491,1704894646546,-500.0,0.00027945,2]
[311073492,1704894646556,-6769.86,0.00027945,2]
[311073493,1704894646565,-500.0,0.00027945,2]
[311073494,1704894646575,-500.0,0.00027945,2]
[311073495,1704894646584,-1310.44,0.00027945,2]
[311073496,1704894646594,-500.0,0.00027945,2]
[311073497,1704894646604,-500.0,0.00027945,2]
[311073498,1704894646613,-500.0,0.00027945,2]
[311073499,1704894646623,-500.0,0.00027945,2]
[311073500,1704894646633,-500.0,0.00027945,2]
[311073501,1704894646642,-500.0,0.00027945,2]
[311073502,1704894646654,-500.0,0.00027945,2]
[311073503,1704894646664,-500.0,0.00027945,2]
[311073504,1704894646673,-500.0,0.00027945,2]
[311073505,1704894646684,-500.0,0.00027945,2]
[311073506,1704894646693,-500.0,0.00027945,2]
[311073507,1704894646704,-500.0,0.00027945,2]
[311073508,1704894646715,-503.46709942,0.00027945,2]
[311073509,1704894646725,-500.0,0.00027945,2]
[311073510,1704894646734,-580.27532805,0.00027945,2]
[311073511,1704894646744,-500.0,0.00027945,2]
[311073512,1704894646753,-500.0,0.00027945,2]
[311073513,1704894646763,-500.0,0.00027945,2]
[311073514,1704894646772,-500.0,0.00027945,2]
[311073515,1704894646781,-500.0,0.00027945,2]
[311073516,1704894646791,-500.0,0.00027945,2]
[311073517,1704894646800,-500.0,0.00027945,2]
[311073518,1704894646811,-500.0,0.00027945,2]
[311073519,1704894646822,-1258.98,0.00027945,2]
[311073520,1704894646832,-6610.91,0.00027945,2]
[311073521,1704894646841,-500.0,0.00027945,2]
[311073522,1704894646855,-500.0,0.00027945,2]
[311073523,1704894646866,-1479.71,0.00027945,2]
[311073524,1704894646876,-896.24,0.00027945,2]
[311073525,1704894646886,-500.0,0.00027945,2]
[311073526,1704894646898,-212.49673005,0.00027945,2]
[311073527,1704894646910,-500.0,0.00028218,2]
[311073528,1704894646919,-500.0,0.00028218,2]
[311073529,1704894646929,-500.0,0.00028218,2]
[311073530,1704894646939,-500.0,0.00028218,2]
[311073531,1704894646950,-500.0,0.00028218,2]
[311073532,1704894647040,-465.70884846,0.00028218,2]
[311073533,1704894647060,-500.0,0.00028219,2]
[311073534,1704894647069,-500.0,0.00028219,2]
[311073535,1704894647079,-500.0,0.00028219,2]
[311073536,1704894647089,-500.0,0.00028219,2]
[311073537,1704894647099,-500.0,0.00028219,2]
[311073538,1704894647109,-500.0,0.00028219,2]
[311073539,1704894647120,-500.0,0.00028219,2]
[311073540,1704894647130,-500.0,0.00028219,2]
[311073541,1704894647140,-500.0,0.00028219,2]
[311073542,1704894647149,-500.0,0.00028219,2]
[311073543,1704894647159,-500.0,0.00028219,2]
[311073544,1704894647169,-489.54080109,0.00028219,2]
[311073545,1704894647179,-500.0,0.00028219,2]
[311073546,1704894647189,-500.0,0.00028219,2]
[311073547,1704894647198,-500.0,0.00028219,2]
[311073548,1704894647208,-500.0,0.00028219,2]
[311073549,1704894647218,-500.0,0.00028219,2]
[311073550,1704894647227,-500.0,0.00028219,2]
[311073551,1704894647237,-500.0,0.00028219,2]
[311073552,1704894647247,-500.0,0.00028219,2]
[311073553,1704894647256,-182.14359521,0.00028219,2]
[311073554,1704894647269,-500.0,0.00028219,2]
[311073555,1704894647278,-500.0,0.00028219,2]
[311073556,1704894647288,-500.0,0.00028219,2]
[311073557,1704894647298,-500.0,0.00028219,2]
[311073558,1704894647309,-500.0,0.00028219,2]
[311073559,1704894647319,-500.0,0.00028219,2]
[311073560,1704894647329,-500.0,0.00028219,2]
[311073561,1704894647340,-500.0,0.00028219,2]
[311073562,1704894647350,-500.0,0.00028219,2]
[311073563,1704894647360,-500.0,0.00028219,2]
[311073564,1704894647369,-1521.94,0.00028219,2]
[311073565,1704894647380,-500.0,0.00028219,2]
[311073566,1704894647390,-508.5740827,0.00028219,2]
[311073567,1704894647400,-500.0,0.00028219,2]
[311073568,1704894647410,-500.0,0.00028219,2]
[311073569,1704894647420,-500.0,0.00028219,2]
[311073570,1704894647430,-500.0,0.00028219,2]
[311073571,1704894647440,-614.65,0.00028219,2]
[311073572,1704894647450,-500.0,0.00028219,2]
[311073573,1704894647460,-500.0,0.00028219,2]
[311073574,1704894647472,-500.0,0.00028219,2]
[311073575,1704894647482,-500.0,0.00028219,2]
[311073576,1704894647491,-688.88,0.00028219,2]
[311073577,1704894647501,-500.0,0.00028219,2]
[311073578,1704894647512,-500.0,0.00028219,2]
[311073579,1704894647522,-1201.75,0.00028219,2]
[311073580,1704894647532,-500.0,0.00028219,2]
[311073581,1704894647542,-8881.87,0.00028219,2]
[311073582,1704894647551,-500.0,0.00028219,2]
[311073583,1704894647562,-528.39,0.00028219,2]
[311073584,1704894647572,-500.0,0.00028219,2]
[311073586,1704894647582,-500.0,0.00028219,2]
[311073588,1704894647591,-500.0,0.00028219,2]
[311073590,1704894647600,-500.0,0.00028219,2]
[311073591,1704894647611,-500.0,0.00028219,2]
[311073593,1704894647620,-500.0,0.00028219,2]
[311073595,1704894647630,-564.67628536,0.00028219,2]
[311073596,1704894647639,-222.94134077,0.00028219,2]
[311073597,1704894647649,-500.0,0.00028219,2]
[311073599,1704894647660,-500.0,0.00028219,2]
[311073600,1704894647669,-500.0,0.00028219,2]
[311073602,1704894647679,-169.70892962,0.00028219,2]
[311073604,1704894647688,-398.56874292,0.00028219,2]
[311073605,1704894647698,-500.0,0.00028219,2]
[311073607,1704894647707,-6769.86,0.00028219,2]
[311073609,1704894647716,-500.0,0.00028219,2]
[311073610,1704894647726,-500.0,0.00028219,2]
[311073611,1704894647735,-1310.44,0.00028219,2]
[311073613,1704894647744,-500.0,0.00028219,2]
[311073614,1704894647754,-500.0,0.00028219,2]
[311073615,1704894647765,-500.0,0.00028219,2]
[311073616,1704894647774,-500.0,0.00028219,2]
[311073617,1704894647783,-500.0,0.00028219,2]
[311073618,1704894647793,-500.0,0.00028219,2]
[311073619,1704894647803,-500.0,0.00028219,2]
[311073620,1704894647814,-500.0,0.00028219,2]
[311073621,1704894647825,-500.0,0.00028219,2]
[311073622,1704894647835,-500.0,0.00028219,2]
[311073623,1704894647849,-500.0,0.00028219,2]
[311073624,1704894647858,-500.0,0.00028219,2]
[311073625,1704894647869,-500.0,0.00028219,2]
[311073626,1704894647879,-500.0,0.00028219,2]
[311073627,1704894647890,-500.0,0.00028219,2]
[311073628,1704894647901,-1258.98,0.00028219,2]
[311073629,1704894647910,-6610.91,0.00028219,2]
[311073630,1704894647920,-500.0,0.00028219,2]
[311073631,1704894647930,-1479.71,0.00028219,2]
[311073632,1704894647942,-896.24,0.00028219,2]
[311073633,1704894647952,-500.0,0.00028219,2]
[311073634,1704894647962,-212.72902683,0.00028256,2]
[311073635,1704894647973,-500.0,0.00028493,2]
[311073636,1704894647983,-500.0,0.00028493,2]
[311073637,1704894647994,-162.28174723,0.00028493,2]
[311073638,1704894648005,-500.0,0.00028493,2]
[311073639,1704894648016,-433.08,0.00028493,2]
[311073640,1704894648027,-500.0,0.00028493,2]
[311073641,1704894648037,-211.69,0.00028493,2]
[311073642,1704894648048,-500.0,0.00028493,2]
[311073643,1704894648058,-500.0,0.00028493,2]
[311073644,1704894648068,-521.45,0.00028493,2]
[311073645,1704894648078,-500.0,0.00028493,2]
[311073646,1704894648088,-509.35,0.00028493,2]
[311073647,1704894648098,-500.0,0.00028493,2]
[311073648,1704894648109,-500.0,0.00028493,2]
[311073649,1704894648119,-500.0,0.00028493,2]
[311073650,1704894648130,-500.0,0.00028493,2]
[311073651,1704894648140,-500.0,0.00028493,2]
[311073652,1704894648150,-500.0,0.00028493,2]
[311073653,1704894648160,-500.0,0.00028493,2]
[311073654,1704894648169,-500.0,0.00028493,2]
[311073655,1704894648179,-1521.94,0.00028493,2]
[311073656,1704894648189,-111.3596484,0.00028493,2]
[311073657,1704894648275,-388.6403516,0.00028493,2]
[311073658,1704894648286,-500.0,0.00028493,2]
[311073659,1704894648296,-500.0,0.00028493,2]
[311073660,1704894648306,-500.0,0.00028493,2]
[311073661,1704894648315,-614.65,0.00028493,2]
[311073662,1704894648325,-500.0,0.00028493,2]
[311073663,1704894648335,-500.0,0.00028493,2]
[311073664,1704894648346,-500.0,0.00028493,2]
[311073665,1704894648356,-500.0,0.00028493,2]
[311073666,1704894648366,-483.36390699,0.00028493,2]
[311073667,1704894648614,-500.0,0.00027397,2]
[311073668,1704894648625,-10.85,0.00027671,2]
[311073669,1704894648644,-489.15,0.00027671,2]
[311073670,1704894648654,-500.0,0.00027945,2]
[311073671,1704894648663,-500.0,0.00028219,2]
[311073672,1704894648673,-205.51609301,0.00028493,2]
[311073673,1704894648682,-500.0,0.00028493,2]
[311073674,1704894648691,-500.0,0.00028493,2]
[311073675,1704894648700,-1201.75,0.00028493,2]
[311073676,1704894648709,-500.0,0.00028493,2]
[311073677,1704894648718,-471.20844587,0.00028493,2]
[311073678,1704894648729,-302.7630626,0.00028493,2]
[311073679,1704894648740,-8107.89849153,0.00028493,2]
[311073680,1704894648749,-59.32044654,0.00028493,2]
[311073681,1704894648817,-614.01289661,0.00027396,2]
[311073682,1704894648827,-326.73090334,0.00027658,2]
[311073683,1704894648836,-182.56387446,0.0002767,2]
[311073684,1704894648846,-440.67955346,0.00028493,2]
[311073685,1704894648856,-528.39,0.00028493,2]
[311073686,1704894648865,-500.0,0.00028493,2]
[311073687,1704894648874,-500.0,0.00028493,2]
[311073688,1704894648883,-500.0,0.00028493,2]
[311073689,1704894648891,-500.0,0.00028493,2]
[311073690,1704894648900,-416.2622589,0.00028493,2]
[311073691,1704894648910,-500.0,0.00028493,2]
[311073692,1704894648919,-500.0,0.00028493,2]
[311073693,1704894648929,-500.0,0.00028493,2]
[311073694,1704894648938,-4046.23466528,0.00028493,2]
[311073695,1704894648950,-982.37154437,0.00028493,2]
[311073696,1704894648961,-1741.25379035,0.00028493,2]
[311073697,1704894648971,-500.0,0.00028493,2]
[311073698,1704894648980,-500.0,0.00028493,2]
[311073699,1704894648991,-1310.44,0.00028493,2]
[311073700,1704894649001,-500.0,0.00028493,2]
[311073701,1704894649011,-500.0,0.00028493,2]
[311073702,1704894649025,-500.0,0.00028493,2]
[311073703,1704894649036,-628.12312548,0.00028493,2]
[311073704,1704894649046,-500.0,0.00028493,2]
[311073705,1704894649056,-500.0,0.00028493,2]
[311073706,1704894649066,-500.0,0.00028493,2]
[311073707,1704894649076,-500.0,0.00028493,2]
[311073708,1704894649086,-230.40967336,0.00028493,2]
[311073709,1704894649095,-421.55727498,0.00028493,2]
[311073710,1704894649105,-500.0,0.00028493,2]
[311073711,1704894649117,-1258.98,0.00028493,2]
[311073712,1704894649127,-6610.91,0.00028493,2]
[311073713,1704894649137,-1479.71,0.00028493,2]
[311073714,1704894649146,-500.0,0.00028493,2]
[311073715,1704894649156,-896.24,0.00028493,2]
[311073716,1704894649166,-500.0,0.00028493,2]
[311073717,1704894649175,-500.0,0.00028493,2]
[311073718,1704894649184,-212.72902683,0.00028736,2]
[311073719,1704894649193,-389.65368179,0.00028766,2]
[311073720,1704894649203,-500.0,0.00028767,2]
[311073721,1704894649212,-500.0,0.00028767,2]
[311073722,1704894649222,-500.0,0.00028767,2]
[311073723,1704894649231,-500.0,0.00028767,2]
[311073724,1704894649241,-500.0,0.00028767,2]
[311073725,1704894649250,-500.0,0.00028767,2]
[311073726,1704894649261,-500.0,0.00028767,2]
[311073727,1704894649371,-500.0,0.00028767,2]
[311073728,1704894649382,-500.0,0.00028767,2]
[311073729,1704894649391,-500.0,0.00028767,2]
[311073730,1704894649401,-500.0,0.00028767,2]
[311073731,1704894649411,-500.0,0.00028767,2]
[311073732,1704894649421,-500.0,0.00028767,2]
[311073733,1704894649430,-500.0,0.00028767,2]
[311073734,1704894649439,-500.0,0.00028767,2]
[311073735,1704894649449,-500.0,0.00028767,2]
[311073736,1704894649458,-500.0,0.00028767,2]
[311073737,1704894649467,-614.65,0.00028767,2]
[311073738,1704894649477,-536.47,0.00028767,2]
[311073739,1704894649486,-500.0,0.00028767,2]
[311073740,1704894649496,-500.0,0.00028767,2]
[311073741,1704894649506,-688.88,0.00028767,2]
[311073742,1704894649517,-500.0,0.00028767,2]
[311073743,1704894649526,-1201.75,0.00028767,2]
[311073744,1704894649535,-500.0,0.00028767,2]
[311073745,1704894649544,-8881.87,0.00028767,2]
[311073746,1704894649553,-528.39,0.00028767,2]
[311073747,1704894649563,-500.0,0.00028767,2]
[311073748,1704894649572,-500.0,0.00028767,2]
[311073749,1704894649581,-168.81,0.00028767,2]
[311073750,1704894649591,-500.0,0.00028767,2]
[311073751,1704894649599,-500.0,0.00028767,2]
[311073752,1704894649609,-6769.86,0.00028767,2]
[311073753,1704894649618,-500.0,0.00028767,2]
[311073754,1704894649627,-500.0,0.00028767,2]
[311073755,1704894649636,-1310.44,0.00028767,2]
[311073756,1704894649645,-500.0,0.00028767,2]
[311073757,1704894649654,-500.0,0.00028767,2]
[311073758,1704894649664,-500.0,0.00028767,2]
[311073759,1704894649673,-155.0,0.00028767,2]
[311073760,1704894649682,-500.0,0.00028767,2]
[311073761,1704894649691,-500.0,0.00028767,2]
[311073762,1704894649701,-1258.98,0.00028767,2]
[311073763,1704894649710,-6610.91,0.00028767,2]
[311073764,1704894649719,-1479.71,0.00028767,2]
[311073765,1704894649728,-500.0,0.00028767,2]
[311073766,1704894649737,-896.24,0.00028767,2]
[311073767,1704894649747,-500.0,0.00028767,2]
[311073768,1704894649756,-500.0,0.00028767,2]
[311073769,1704894649767,-1990.918213,0.00029,2]
[311073770,1704894649777,-500.0,0.00029041,2]
[311073771,1704894649786,-500.0,0.00029041,2]
[311073772,1704894649796,-317.56773478,0.00029041,2]
[311073773,1704894649806,-500.0,0.00029041,2]
[311073774,1704894649815,-500.0,0.00029041,2]
[311073775,1704894649824,-500.0,0.00029041,2]
[311073776,1704894649834,-500.0,0.00029041,2]
[311073777,1704894649843,-158.61004052,0.00029041,2]
[311073778,1704894649856,-500.0,0.00029041,2]
[311073779,1704894649865,-366.4580534,0.00029041,2]
[311073780,1704894649874,-500.0,0.00029041,2]
[311073781,1704894649883,-500.0,0.00029041,2]
[311073782,1704894649893,-500.0,0.00029041,2]
[311073783,1704894649902,-500.0,0.00029041,2]
[311073784,1704894649911,-500.0,0.00029041,2]
[311073785,1704894649921,-614.65,0.00029041,2]
[311073786,1704894649930,-500.0,0.00029041,2]
[311073787,1704894649941,-500.0,0.00029041,2]
[311073788,1704894649950,-688.88,0.00029041,2]
[311073789,1704894649959,-175.80831437,0.00029041,2]
[311073790,1704894649969,-1201.75,0.00029041,2]
[311073791,1704894649979,-500.0,0.00029041,2]
[311073792,1704894649988,-8881.87,0.00029041,2]
[311073793,1704894649997,-528.39,0.00029041,2]
[311073794,1704894650006,-500.0,0.00029041,2]
[311073795,1704894650016,-500.0,0.00029041,2]